bitfinex-derivatives/quotes_ETHF0:USTF0_20250501
["timestamp","ask_amount","ask_price","bid_price","bid_amount"]
[1746116977959,2.69224,1863.2,1863.1,1.0731]
[1746116978657,1.0731,1863.1,1863.0,9.57551]
[1746116978847,2.6923,1863.1,1863.0,6.7868]
[1746116979046,1.07321,1862.9,1862.8,3.575]
[1746116979458,3.48351,1862.9,1862.8,3.575]
[1746116980559,3.48351,1862.9,1862.8,4.64827]
[1746116981053,3.48351,1862.9,1862.8,6.35467]
[1746116983060,1.07321,1862.9,1862.8,6.35467]
[1746116984261,2.65011,1862.9,1862.8,6.35467]
[1746116986265,2.65011,1862.9,1862.8,3.575]
[1746116987866,2.65011,1862.9,1862.8,4.64827]
[1746116988354,1.5769,1862.9,1862.8,4.64827]
[1746116988764,2.65011,1862.9,1862.8,6.37047]
[1746116990368,2.65011,1862.9,1862.8,3.575]
[1746116990954,1.07327,1862.8,1862.7,3.2078]
[1746116991268,3.57697,1862.8,1862.7,3.2078]
[1746116993569,8.57697,1862.8,1862.7,3.2078]
[1746116993963,3.57697,1862.8,1862.7,3.2078]
[1746116994363,1.07339,1862.6,1862.5,6.7828]
[1746116994560,1.07339,1862.6,1862.5,3.2078]
[1746116994965,1.87439,1862.6,1862.5,3.2078]
[1746116998973,1.07339,1862.6,1862.5,3.2078]
[1746116999768,1.07339,1862.6,1862.5,3.9941]
[1746116999973,1.07339,1862.6,1862.5,5.6631]
[1746117000570,1.07339,1862.6,1862.5,3.2078]
[1746117000767,1.07339,1862.6,1862.2,6.7828]
[1746117000768,1.07356,1862.3,1862.2,6.7828]
[1746117001976,2.80286,1862.3,1862.2,6.7828]
[1746117003574,2.80286,1862.3,1862.2,3.2078]
[1746117003767,1.07373,1862.0,1861.9,53.757]
[1746117003973,1.07373,1862.0,1861.9,53.3888]
[1746117004172,1.07373,1862.0,1861.9,3.2078]
[1746117004579,1.86383,1862.0,1861.9,3.2078]
[1746117006077,1.07379,1861.9,1861.8,1.51485]
[1746117006277,3.45409,1861.9,1861.8,1.51485]
[1746117009376,2.64549,1861.9,1861.8,1.51485]
[1746117009576,2.64549,1861.9,1861.8,3.94665]
[1746117016584,2.64549,1861.9,1861.8,1.51485]
[1746117018581,2.64549,1861.9,1861.8,3.14825]
[1746117019183,1.07379,1862.0,1861.9,1.07376]
[1746117019387,1.07373,1862.0,1861.9,2.5278]
[1746117020292,1.07373,1862.0,1861.9,3.60159]
[1746117020588,1.07373,1862.0,1861.9,2.5278]
[1746117020889,1.07379,1861.9,1861.8,5.08885]
[1746117021793,3.54119,1861.9,1861.8,5.08885]
[1746117021991,3.54119,1861.9,1861.8,1.51485]
[1746117022787,3.57210635,1862.7,1861.8,1.51485]
[1746117022980,0.8268,1862.6,1862.3,4.28134]
[1746117023197,1.07339,1862.6,1862.5,3.2078]
[1746117023593,1.07339,1862.6,1862.5,4.8031]
[1746117023794,1.07344,1862.5,1862.4,5.2164]
[1746117024093,2.72244,1862.5,1862.4,3.574]
[1746117025395,3.54924,1862.5,1862.4,3.574]
[1746117025794,3.54924,1862.5,1862.4,5.2252]
[1746117026396,1.07344,1862.5,1862.4,6.2987]
[1746117026598,1.07344,1862.5,1862.4,7.0965]
[1746117027291,3.57210635,1862.6,1862.5,1.07344]
[1746117027490,4.64549635,1862.6,1862.5,6.76594]
[1746117027691,3.57210635,1862.6,1862.5,6.76594]
[1746117028293,4.64549635,1862.6,1862.5,6.76594]
[1746117028996,1.07315,1863.1,1863.0,1.07314]
[1746117029195,2.72815,1863.1,1863.0,3.2078]
[1746117029388,1.07321,1862.9,1862.8,10.0651]
[1746117030397,1.07333,1862.7,1862.6,3.2078]
[1746117030807,1.07333,1862.7,1862.6,4.933]
[1746117031007,2.64123,1862.7,1862.6,3.2078]
[1746117031195,1.5679,1862.7,1862.4,4.933]
[1746117031500,1.07344,1862.5,1862.4,4.933]
[1746117031696,1.07344,1862.5,1862.4,3.2078]
[1746117031900,1.93774,1862.5,1862.4,3.2078]
[1746117032199,1.0735,1862.4,1862.3,3.573]
[1746117032403,2.6414,1862.4,1862.3,3.573]
[1746117032601,2.6414,1862.4,1862.3,6.37176]
[1746117033312,0.8643,1862.5,1862.4,1.0735]
[1746117033313,1.07349,1862.5,1862.4,1.0735]
[1746117033505,1.07349,1862.5,1862.4,6.0065]
[1746117033701,1.5679,1862.6,1862.4,6.0065]
[1746117033909,2.64134,1862.6,1862.5,2.4883]
[1746117034510,2.64134,1862.6,1862.5,3.56174]
[1746117034713,2.64134,1862.6,1862.5,2.4883]
[1746117035016,2.64134,1862.6,1862.5,3.56174]
[1746117035314,1.07344,1862.6,1862.5,3.56174]
[1746117036012,1.07344,1862.6,1862.5,2.4883]
[1746117038011,1.07344,1862.5,1862.4,3.2078]
[1746117038211,1.07344,1862.5,1862.4,4.2813]
[1746117038411,1.07344,1862.5,1862.4,3.2078]
[1746117038719,1.07344,1862.5,1862.4,4.2813]
[1746117039026,1.07344,1862.5,1862.4,5.9078]
[1746117040219,2.65164,1862.6,1862.5,1.07344]
[1746117040517,2.65164,1862.6,1862.5,2.77044]
[1746117040716,2.65164,1862.6,1862.5,1.697]
[1746117041214,1.07344,1862.5,1862.4,3.2078]
[1746117041521,2.70424,1862.5,1862.4,3.2078]
[1746117041712,3.56894,1862.5,1862.4,4.2813]
[1746117041906,1.6308,1862.5,1862.4,5.9783]
[1746117042106,1.07343,1862.6,1862.5,1.0734]
[1746117042315,1.07343,1862.6,1862.5,2.7704]
[1746117042914,2.70417,1862.7,1862.6,1.07339]
[1746117043118,1.92181,1862.8,1862.7,1.07333]
[1746117043520,1.07331,1862.8,1862.7,2.74353]
[1746117044324,1.07326,1862.9,1862.8,1.07327]
[1746117044521,1.07326,1862.9,1862.8,5.95127]
[1746117046124,2.65406,1862.9,1862.8,5.95127]
[1746117046623,5.47670635,1863.2,1863.1,1.0731]
[1746117046820,1.5808,1863.2,1863.1,1.0731]
[1746117047024,1.07304,1863.2,1863.1,1.0731]
[1746117047225,1.0731,1863.1,1863.0,5.7338]
[1746117047425,1.0731,1863.1,1863.0,3.2078]
[1746117047620,1.8796,1863.1,1863.0,3.2078]
[1746117047825,1.8796,1863.1,1863.0,4.28096]
[1746117048726,1.8796,1863.1,1863.0,3.2078]
[1746117049025,1.0731,1863.1,1863.0,4.28096]
[1746117049229,2.65389,1863.2,1863.1,1.0731]
[1746117051227,2.65389,1863.2,1863.1,1.6651]
[1746117051538,1.0731,1863.1,1863.0,4.28096]
[1746117051735,2.7582,1863.1,1863.0,4.28096]
[1746117052427,2.7582,1863.1,1863.0,3.2078]
[1746117052626,2.7582,1863.1,1863.0,4.28096]
[1746117053134,2.7582,1863.1,1863.0,5.94506]
[1746117053332,2.7582,1863.1,1863.0,4.28096]
[1746117054138,1.6851,1863.1,1863.0,4.28096]
[1746117054321,1.07306,1863.2,1863.1,1.0731]
[1746117054527,1.07306,1863.2,1863.1,2.7372]
[1746117055329,3.54452,1863.3,1863.2,1.07304]
[1746117055535,3.54452,1863.3,1863.2,5.08984]
[1746117056531,3.54452,1863.3,1863.2,4.0168]
[1746117056739,3.54452,1863.3,1863.2,3.2078]
[1746117057229,3.54452,1863.3,1863.2,4.28084]
[1746117057429,2.4715,1863.3,1863.2,4.28084]
[1746117057633,10.35090635,1863.7,1863.2,6.7778]
[1746117057634,1.07291,1863.5,1863.2,6.7778]
[1746117057841,1.7121,1863.5,1863.4,4.28073]
[1746117058138,3.57210635,1863.7,1863.6,1.07281]
[1746117058333,5.23060635,1863.7,1863.6,7.85061]
[1746117058533,6.30335635,1863.7,1863.6,7.85061]
[1746117058731,5.35097529,1863.8,1863.6,18.5622]
[1746117059034,5.68821075,1863.9,1863.8,1.0727]
[1746117059336,8.84478553,1864.1,1864.0,1.07258]
[1746117059527,8.84478553,1864.1,1864.0,12.7098]
[1746117059837,9.91730553,1864.1,1864.0,9.1398]
[1746117060037,1.07264,1863.9,1863.8,6.7778]
[1746117060240,1.07264,1863.9,1863.8,3.2078]
[1746117060627,2.73114,1863.9,1863.8,3.2078]
[1746117061033,2.73114,1863.9,1863.8,4.2805]
[1746117061530,2.73114,1863.9,1863.8,3.2078]
[1746117061738,2.73114,1863.9,1863.8,4.2805]
[1746117062338,2.73114,1863.9,1863.8,3.2078]
[1746117063636,1.6585,1863.9,1863.8,4.2805]
[1746117063838,1.6585,1863.9,1863.8,6.7263]
[1746117064038,2.68088,1864.5,1864.0,1.07254]
[1746117064236,3.5805,1864.2,1864.1,1.07252]
[1746117064541,3.5805,1864.2,1864.1,1.5979]
[1746117064939,1.0725,1864.2,1864.1,2.67042]
[1746117065134,3.3811,1864.4,1864.1,2.67041]
[1746117065334,2.79738,1864.4,1864.2,5.10991]
[1746117065533,2.79738,1864.4,1864.3,1.5979]
[1746117065730,11.52491553,1865.0,1864.3,7.5299]
[1746117065935,1.07216,1864.8,1864.7,3.2078]
[1746117066741,1.07218,1864.7,1864.6,3.569]
[1746117066942,2.79718,1864.7,1864.6,8.3747]
[1746117067145,1.07218,1864.7,1864.6,6.7768]
[1746117067741,2.68065,1864.6,1864.2,3.2078]
[1746117067940,1.07241,1864.3,1864.2,3.2078]
[1746117068638,2.71479,1864.4,1864.2,4.28024]
[1746117068844,2.71479,1864.4,1864.2,6.70414]
[1746117069042,2.71479,1864.4,1864.3,1.5914]
[1746117069638,1.6424,1864.4,1864.3,1.5914]
[1746117069840,2.71475,1864.4,1864.3,2.4373]
[1746117070843,2.71475,1864.4,1864.3,3.50971]
[1746117071141,2.71475,1864.4,1864.3,2.4373]
[1746117071342,0.8028,1864.6,1864.3,3.50971]
[1746117071545,1.07233,1864.5,1864.4,4.7845]
[1746117071947,1.07233,1864.5,1864.2,4.0403]
[1746117071948,1.07241,1864.3,1864.2,4.0403]
[1746117072142,1.07241,1864.3,1864.2,3.2078]
[1746117072342,1.07239,1864.4,1864.2,10.27157]
[1746117072539,1.07235,1864.4,1864.3,1.5767]
[1746117072941,1.07241,1864.3,1864.2,7.6224]
[1746117073250,2.72531,1864.3,1864.2,7.6224]
[1746117073636,2.72531,1864.3,1864.2,10.33987]
[1746117074045,1.07241,1864.4,1864.3,1.07241]
[1746117074240,2.75011,1864.4,1864.3,1.645]
[1746117075154,1.07234,1864.5,1864.4,1.07233]
[1746117075342,1.07234,1864.5,1864.4,4.0495]
[1746117075742,2.75004,1864.5,1864.4,4.0495]
[1746117076537,2.75004,1864.5,1864.4,0.8417]
[1746117076741,1.07241,1864.3,1864.2,6.8058]
[1746117077346,1.07241,1864.3,1864.1,5.932]
[1746117077347,5.0,1864.3,1864.0,3.2078]
[1746117077641,2.68148,1864.0,1863.3,6.60216]
[1746117077847,1.07293,1863.4,1863.3,10.19916]
[1746117078637,1.07293,1863.4,1863.3,6.99136]
[1746117079646,1.07293,1863.4,1863.3,9.70174]
[1746117079845,1.07279,1863.7,1863.3,20.34446]
[1746117080049,1.07279,1863.7,1863.5,1.07282]
[1746117080245,1.07279,1863.7,1863.6,1.6374]
[1746117080550,1.07279,1863.7,1863.6,4.8452]
[1746117080747,1.07287,1863.5,1863.4,4.28068]
[1746117080950,1.07287,1863.5,1863.4,4.8452]
[1746117081746,1.07293,1863.4,1863.3,14.49716]
[1746117082448,2.4612,1863.5,1863.3,14.49716]
[1746117082645,3.5341,1863.5,1863.4,1.07293]
[1746117082846,3.5341,1863.5,1863.4,4.8585]
[1746117083045,3.5341,1863.5,1863.4,1.6507]
[1746117083252,3.5341,1863.5,1863.4,2.72363]
[1746117084246,3.5341,1863.5,1863.4,1.6507]
[1746117084548,1.07293,1863.4,1863.3,7.77506]
[1746117084846,2.67883,1863.4,1863.3,7.77506]
[1746117085054,2.67883,1863.4,1863.3,8.84804]
[1746117085553,2.67883,1863.4,1863.3,10.42264]
[1746117086454,1.87461,1863.5,1863.4,1.07293]
[1746117086652,0.8017,1863.5,1863.4,6.70803]
[1746117086853,1.87457,1863.5,1863.4,6.70803]
[1746117087055,1.07286,1863.6,1863.5,1.07287]
[1746117087351,1.07286,1863.6,1863.5,2.64747]
[1746117087548,1.5676,1863.7,1863.6,1.07281]
[1746117087749,1.07275,1863.7,1863.6,5.85517]
[1746117087947,1.07275,1863.7,1863.6,5.85521]
[1746117088148,1.07275,1863.7,1863.6,9.45321]
[1746117088349,2.64033,1863.8,1863.7,1.07275]
[1746117088552,2.64033,1863.8,1863.7,3.46175]
[1746117088753,2.64033,1863.8,1863.7,0.7923]
[1746117089149,1.07275,1863.7,1863.6,7.87857]
[1746117089355,2.70315,1863.7,1863.6,7.87857]
[1746117090148,2.70315,1863.7,1863.6,6.8058]
[1746117090351,1.07287,1863.5,1863.4,9.53]
[1746117090651,1.07293,1863.4,1863.3,10.20016]
[1746117090856,2.70333,1863.4,1863.3,10.20016]
[1746117091153,2.70333,1863.4,1863.3,6.60216]
[1746117091555,2.70333,1863.4,1863.3,7.67514]
[1746117091748,1.6304,1863.4,1863.3,7.67514]
[1746117092355,1.6304,1863.4,1863.3,8.47734]
[1746117093056,1.92588,1863.5,1863.4,1.07293]
[1746117093258,0.853,1863.5,1863.4,2.75113]
[1746117093652,1.5932,1863.6,1863.5,1.07287]
[1746117093852,2.66601,1863.6,1863.5,2.75107]
[1746117094955,1.5932,1863.6,1863.5,2.75107]
[1746117095153,1.07278,1863.7,1863.6,1.07281]
[1746117095358,1.85662,1864.0,1863.6,4.38229]
[1746117095561,1.85662,1864.0,1863.9,3.2078]
[1746117095763,2.73819,1863.9,1863.8,4.67065]
[1746117096763,2.73819,1863.9,1863.8,3.598]
[1746117096953,3.60169,1863.9,1863.8,3.598]
[1746117098764,2.73819,1863.9,1863.8,4.6707]
[1746117098960,2.73819,1863.9,1863.8,3.598]
[1746117099163,2.73819,1863.9,1863.8,4.6707]
[1746117099462,2.73819,1863.9,1863.8,3.598]
[1746117099853,1.07275,1863.7,1863.6,1.0728]
[1746117100865,1.07281,1863.6,1863.5,13.82262]
[1746117101056,1.9303,1863.7,1863.6,1.07281]
[1746117101253,1.89524,1863.8,1863.7,1.07275]
[1746117101458,1.07275,1863.7,1863.6,2.71086]
[1746117101760,2.75035,1863.7,1863.6,2.71086]
[1746117101960,1.89525,1863.8,1863.7,1.07275]
[1746117102162,1.89525,1863.8,1863.7,5.91865]
[1746117103267,1.07275,1863.7,1863.6,1.07277]
[1746117103467,1.07281,1863.6,1863.5,9.52873]
[1746117104067,2.69311,1863.6,1863.5,7.89063]
[1746117104765,2.69311,1863.6,1863.5,6.8178]
[1746117105665,2.69311,1863.6,1863.5,7.89067]
[1746117105873,2.69311,1863.6,1863.5,3.2078]
[1746117106076,2.69311,1863.6,1863.5,4.28067]
[1746117107773,1.6203,1863.6,1863.5,4.28067]
[1746117108072,1.89524,1863.8,1863.5,7.6584]
[1746117108272,0.8225,1863.8,1863.7,4.28055]
[1746117108572,2.76599,1863.9,1863.8,1.0727]
[1746117108773,2.76599,1863.9,1863.8,3.5928]
[1746117109168,1.6933,1863.9,1863.8,3.5928]
[1746117109475,2.76594,1863.9,1863.8,3.5928]
[1746117109974,1.6933,1863.9,1863.8,3.5928]
[1746117112468,2.76594,1863.9,1863.8,3.5928]
[1746117112775,1.6933,1863.9,1863.8,3.5928]
[1746117113880,1.86841,1864.0,1863.9,1.07264]
[1746117114083,1.86841,1864.0,1863.9,5.84774]
[1746117114576,3.58011,1864.0,1863.9,5.84774]
[1746117114772,3.58011,1864.0,1863.9,3.2078]
[1746117114978,1.07264,1863.9,1863.8,5.52326]
[1746117115168,2.78434,1863.9,1863.8,4.68266]
[1746117117180,2.78434,1863.9,1863.8,3.61]
[1746117117377,1.7117,1863.9,1863.5,13.02113579]
[1746117117575,1.07281,1863.6,1863.5,16.63113579]
[1746117117881,1.07281,1863.6,1863.5,15.01783579]
[1746117118882,1.92321,1863.6,1863.5,15.01783579]
[1746117120182,1.92321,1863.6,1863.5,13.94501579]
[1746117120484,1.92321,1863.6,1863.5,7.12721579]
[1746117120981,1.92321,1863.6,1863.5,8.20008579]
[1746117121686,1.92321,1863.6,1863.4,4.28071]
[1746117121687,1.07287,1863.5,1863.4,4.28071]
[1746117121988,2.69477,1863.5,1863.4,4.28071]
[1746117122180,1.07293,1863.4,1863.3,3.39436]
[1746117122381,3.54723,1863.4,1863.3,3.39436]
[1746117122778,2.67923,1863.4,1863.3,4.46734]
[1746117122984,1.07291,1863.5,1863.4,1.07287]
[1746117123287,1.07293,1863.4,1863.3,4.46731]
[1746117123682,1.07293,1863.4,1863.3,6.14571]
[1746117124282,2.67919,1863.5,1863.4,1.07293]
[1746117124587,1.07285,1863.6,1863.5,1.07281]
[1746117124890,2.67909,1863.7,1863.6,1.07281]
[1746117125077,1.07279,1863.7,1863.6,5.94601]
[1746117125592,1.07279,1863.7,1863.6,3.2078]
[1746117125789,1.07281,1863.6,1863.5,9.55277]
[1746117126283,2.79771,1863.6,1863.5,9.55277]
[1746117126993,2.79771,1863.6,1863.5,6.8178]
[1746117128487,2.79771,1863.6,1863.5,7.6819]
[1746117129393,2.79771,1863.6,1863.5,3.61]
[1746117129687,1.07293,1863.4,1863.3,19.66137579]
[1746117130386,2.76033,1863.4,1863.3,19.66137579]
[1746117131384,1.07293,1863.4,1863.3,20.73435579]
[1746117131591,1.07289,1863.5,1863.4,1.07287]
[1746117131887,1.07284,1863.6,1863.5,1.07281]
[1746117132080,1.07276,1863.7,1863.6,1.07275]
[1746117132281,1.07276,1863.7,1863.6,2.64245]
[1746117132782,1.07276,1863.7,1863.6,1.5697]
[1746117132983,1.07276,1863.7,1863.6,2.64251]
[1746117137389,1.5963,1863.8,1863.7,1.07275]
[1746117137390,2.66904,1863.8,1863.7,1.07275]
[1746117137586,1.07274,1863.8,1863.7,6.82095]
[1746117138789,3.56268,1863.9,1863.8,1.0727]
[1746117138994,1.07268,1863.9,1863.8,3.5861]
[1746117139186,4.35882,1864.1,1863.9,1.07258]
[1746117139187,1.07263,1864.0,1863.9,1.07258]
[1746117139388,1.07263,1864.0,1863.9,5.95864]
[1746117139584,2.77243,1864.0,1863.9,5.95864]
[1746117140601,2.77243,1864.0,1863.9,4.886]
[1746117140892,1.07264,1863.9,1863.8,3.577]
[1746117141091,2.66114,1863.9,1863.8,3.577]
[1746117141294,1.07275,1863.7,1863.6,10.2126]
[1746117142086,2.66125,1863.7,1863.6,11.8968]
[1746117142487,2.66125,1863.7,1863.6,10.824]
[1746117142694,2.66125,1863.7,1863.6,11.89681]
[1746117142895,2.66125,1863.7,1863.6,5.96481]
[1746117144090,3.51435,1863.7,1863.6,5.96481]
[1746117145396,1.07275,1863.7,1863.6,5.96481]
[1746117146695,5.36606836,1864.3,1863.8,2.68174]
[1746117146890,11.25496836,1864.3,1863.9,6.7786]
[1746117147193,1.07258,1864.0,1863.9,7.8512]
[1746117148298,1.6919,1864.0,1863.9,7.8512]
[1746117148500,1.8593,1864.2,1864.1,1.07252]
[1746117148702,3.5512,1864.2,1864.1,1.07252]
[1746117149596,6.43851836,1864.3,1864.2,1.07247]
[1746117149897,6.43851836,1864.3,1864.2,4.28027]
[1746117150096,5.36606836,1864.3,1864.2,4.28027]
[1746117150397,5.36606836,1864.3,1864.2,8.70787]
[1746117150797,1.6398,1864.4,1864.3,1.07241]
[1746117150798,2.71218,1864.4,1864.3,1.07241]
[1746117150998,2.71218,1864.4,1864.3,2.75991]
[1746117151696,1.6398,1864.4,1864.3,2.75991]
[1746117151903,2.71215,1864.4,1864.3,2.75991]
[1746117152102,1.6398,1864.4,1864.3,2.75991]
[1746117152403,2.71215,1864.4,1864.3,2.75991]
[1746117152903,2.71215,1864.4,1864.3,1.07241]
[1746117153600,1.07241,1864.3,1864.2,10.42252]
[1746117153797,2.71011,1864.3,1864.2,8.70782]
[1746117154104,2.71011,1864.3,1864.2,3.577]
[1746117154705,2.71011,1864.3,1864.2,6.7848]
[1746117155313,1.07252,1864.1,1864.0,4.28037]
[1746117156005,3.51342,1864.1,1864.0,11.38747105]
[1746117156701,2.4409,1864.1,1864.0,11.38747105]
[1746117156905,1.5949,1864.1,1864.0,13.09637105]
[1746117157111,1.86344,1864.3,1864.2,1.07247]
[1746117157811,2.66729,1864.4,1864.3,1.07241]
[1746117158011,1.5949,1864.4,1864.3,1.07241]
[1746117158304,2.66725,1864.4,1864.3,2.78131]
[1746117158615,1.0723,1864.6,1864.5,1.07226]
[1746117158999,8.04594836,1865.2,1864.6,1.07224]
[1746117159210,1.07212,1864.8,1864.7,1.07216]
[1746117159802,1.07212,1864.8,1864.7,2.67306]
[1746117159996,1.07218,1864.7,1864.6,10.21199]
[1746117160209,3.66908,1864.7,1864.6,10.21199]
[1746117161507,2.80788,1864.7,1864.6,10.21199]
[1746117161702,2.80788,1864.7,1864.6,11.79899]
[1746117162106,1.7357,1864.7,1864.6,11.79899]
[1746117162310,1.7357,1864.7,1864.6,12.62879]
[1746117162616,1.07216,1864.8,1864.7,1.07218]
[1746117162910,2.72216,1864.8,1864.7,2.65918]
[1746117163099,2.72212,1864.8,1864.7,2.65918]
[1746117163297,1.65,1864.8,1864.7,2.65918]
[1746117163507,2.72212,1864.8,1864.7,2.65918]
[1746117164014,6.21936836,1865.1,1864.7,1.587]
[1746117164214,2.72207,1865.0,1864.9,1.07203]
[1746117166515,1.07206,1864.9,1864.8,7.5917]
[1746117166718,2.68056,1864.9,1864.8,7.5917]
[1746117166915,3.52276,1864.9,1864.8,7.5917]
[1746117167215,2.68056,1864.9,1864.8,8.66382]
[1746117168016,1.6085,1864.9,1864.8,8.66382]
[1746117168218,2.68056,1864.9,1864.8,8.66382]
[1746117168418,2.68056,1864.9,1864.8,7.5917]
[1746117168716,2.68056,1864.9,1864.8,8.66382]
[1746117169123,2.68056,1864.9,1864.8,7.5917]
[1746117169711,2.68056,1864.9,1864.8,6.7958]
[1746117169916,1.07206,1864.9,1864.8,10.39272]
[1746117170514,2.74105,1865.0,1864.9,1.07206]
[1746117171322,1.07206,1864.9,1864.8,10.39268]
[1746117171521,2.72046,1864.9,1864.8,6.7958]
[1746117171914,2.72046,1864.9,1864.8,3.588]
[1746117172618,1.6484,1864.9,1864.6,3.2078]
[1746117172819,1.07218,1864.7,1864.6,3.2078]
[1746117173321,3.57408,1864.7,1864.6,3.2078]
[1746117173916,3.57408,1864.7,1864.6,4.28004]
[1746117175532,3.57408,1864.7,1864.6,3.2078]
[1746117175722,3.57408,1864.7,1864.6,4.28004]
[1746117176627,2.72058,1864.7,1864.6,4.28004]
[1746117176825,2.72058,1864.7,1864.6,5.86714]
[1746117177027,2.72058,1864.7,1864.6,4.28004]
[1746117177529,2.72058,1864.7,1864.6,5.98474]
[1746117177729,1.6484,1864.7,1864.6,5.98474]
[1746117177919,1.07216,1864.8,1864.7,1.07218]
[1746117178125,2.76226,1864.8,1864.7,2.77688]
[1746117179331,2.76226,1864.8,1864.7,1.7047]
[1746117179518,2.76226,1864.8,1864.7,2.77688]
[1746117179719,2.76226,1864.8,1864.7,1.7047]
[1746117180024,1.07218,1864.7,1864.6,3.2078]
[1746117180220,2.79288,1864.7,1864.6,3.2078]
[1746117180617,1.07229,1864.5,1864.4,9.1398]
[1746117180821,1.07229,1864.5,1864.4,10.21215]
[1746117181030,1.07229,1864.5,1864.4,3.2078]
[1746117181224,2.79299,1864.5,1864.4,3.2078]
[1746117182127,2.79299,1864.5,1864.4,4.28015]
[1746117183335,2.79299,1864.5,1864.4,3.2078]
[1746117183534,2.79299,1864.5,1864.4,4.28015]
[1746117185434,1.7207,1864.5,1864.4,4.28015]
[1746117185635,2.79299,1864.5,1864.4,4.28015]
[1746117185938,3.2078,1864.9,1864.4,3.2078]
[1746117186130,2.77898,1864.7,1864.6,4.27998]
[1746117186437,2.77898,1864.7,1864.6,5.98118]
[1746117190739,1.7068,1864.7,1864.5,5.2714]
[1746117190942,2.66234,1864.6,1864.5,3.587]
[1746117191843,2.66234,1864.6,1864.5,4.65929]
[1746117193443,2.66234,1864.6,1864.5,3.587]
[1746117193740,2.66234,1864.6,1864.5,4.65929]
[1746117194739,2.66234,1864.6,1864.5,3.587]
[1746117195339,2.66234,1864.6,1864.5,4.65929]
[1746117197050,2.66234,1864.6,1864.5,3.587]
[1746117198346,1.07222,1864.7,1864.6,1.07218]
[1746117198551,3.48598,1864.8,1864.7,1.07218]
[1746117198749,1.07218,1864.8,1864.7,1.86108]
[1746117198952,1.07218,1864.8,1864.7,3.57988]
[1746117199344,1.07211,1864.9,1864.8,1.07206]
[1746117199643,1.07211,1864.9,1864.8,5.99866]
[1746117200350,1.07206,1864.9,1864.8,5.99866]
[1746117200850,3.56362799,1865.0,1864.9,1.07206]
[1746117201049,3.56362799,1865.0,1864.9,3.65456]
[1746117201950,4.63563799,1865.0,1864.9,3.65456]
[1746117202155,1.07206,1864.9,1864.8,13.78188]
[1746117202347,2.65066,1864.9,1864.8,13.78188]
[1746117202548,3.51736,1864.9,1864.8,13.78188]
[1746117203354,3.51736,1864.9,1864.8,15.35878]
[1746117204054,2.4453,1864.9,1864.8,15.35878]
[1746117204255,1.07205,1865.0,1864.9,1.07206]
[1746117204449,2.64555,1865.0,1864.9,3.55886]
[1746117207859,2.64555,1865.0,1864.9,1.91916]
[1746117208357,2.64555,1865.0,1864.9,0.8471]
[1746117208761,2.64555,1865.0,1864.9,1.91916]
[1746117209254,2.64555,1865.0,1864.9,0.8471]
[1746117209754,2.64555,1865.0,1864.9,1.91916]
[1746117210963,2.64555,1865.0,1864.9,0.8471]
[1746117211160,1.07206,1864.9,1864.8,3.57]
[1746117211462,2.67076,1864.9,1864.8,3.57]
[1746117212465,2.67076,1864.9,1864.8,4.64212]
[1746117213259,1.5987,1864.9,1864.8,4.64212]
[1746117213468,1.07196,1865.2,1864.9,2.68017]
[1746117213662,1.07196,1865.2,1865.1,1.07191]
[1746117213862,2.63806,1865.2,1865.1,1.07191]
[1746117214064,1.07195,1865.1,1865.0,6.72017]
[1746117214361,2.63805,1865.1,1865.0,5.6482]
[1746117214564,2.63805,1865.1,1865.0,3.2078]
[1746117215071,2.63805,1865.1,1865.0,4.27981]
[1746117216363,2.63805,1865.1,1864.9,5.932]
[1746117216566,3.45561,1865.0,1864.9,5.932]
[1746117218167,3.45561,1865.0,1864.9,7.00406]
[1746117218762,3.45561,1865.0,1864.9,7.86876]
[1746117219163,3.45561,1865.0,1864.9,5.14456]
[1746117219467,3.45561,1865.0,1864.9,1.93676]
[1746117220263,3.45561,1865.0,1864.9,5.14456]
[1746117221165,3.45561,1865.0,1864.9,4.0725]
[1746117221366,3.45561,1865.0,1864.9,3.2078]
[1746117222763,3.45561,1865.0,1864.7,6.7338]
[1746117222764,1.07212,1864.9,1864.7,6.7338]
[1746117222964,1.07212,1864.9,1864.8,4.27992]
[1746117223264,1.07205,1865.0,1864.9,1.07199]
[1746117223463,1.07199,1865.1,1865.0,1.07194]
[1746117223669,1.07199,1865.1,1865.0,2.70534]
[1746117223864,1.07199,1865.1,1865.0,4.43404]
[1746117225263,1.92119,1865.1,1865.0,1.89544]
[1746117225667,2.80602,1865.2,1865.1,1.07195]
[1746117226873,1.07195,1865.1,1865.0,6.68106]
[1746117227068,2.68085,1865.1,1865.0,6.68106]
[1746117227275,3.46625,1865.1,1865.0,5.10326]
[1746117227473,3.46625,1865.1,1865.0,1.89546]
[1746117227772,2.68085,1865.1,1865.0,1.89546]
[1746117228164,2.68085,1865.1,1865.0,5.10326]
[1746117229877,1.07201,1865.0,1864.9,1.07202]
[1746117230177,2.69411,1865.0,1864.9,1.07202]
[1746117230770,0.7854,1865.2,1864.9,1.07202]
[1746117230977,1.07197,1865.1,1865.0,4.27975]
[1746117231377,1.07197,1865.1,1865.0,3.2078]
[1746117231582,2.69407,1865.1,1865.0,3.2078]
[1746117231971,1.07206,1864.9,1864.8,7.84788]
[1746117232674,1.7192,1865.0,1864.8,7.84788]
[1746117232675,2.79126,1865.0,1864.9,1.07206]